[Event "BLR-ch 1st Stage Men 2020"]
[Site "Minsk"]
[Date "2020.02.01"]
[Round "7.5"]
[White "Meribanov, Vitaly"]
[Black "Smirnov, Valerij"]
[Result "1-0"]
[ECO "B76"]
[WhiteElo "2417"]
[BlackElo "2261"]
[Annotator "NA"]
[PlyCount "67"]
[EventDate "2020.02.01"]
[EventType "swiss"]
[EventCountry "BLR"]
[SourceTitle "playchess.com"]
[Source "ChessBase"]
[SourceQuality "1"]
[TimeControl "40/5400+30:1800+30"]

1. e4 {[%emt 0:00:00]} c5 {[%emt 0:00:52]} 2. Nf3 {[%emt 0:00:00]} g6 {[%emt 0:00:13]} 3. d4 {[%emt 0:05:54]} Bg7 {[%emt 0:00:28]} 4. Nc3 {[%emt 0:03:24]} cxd4 {[%emt 0:04:06]} 5. Nxd4 {[%emt 0:00:09]} Nc6 {[%emt 0:00:06]} 6. Be3 {[%emt 0:00:03]} d6 {[%emt 0:00:16]} 7. Qd2 {[%emt 0:00:27]} Nf6 {[%emt 0:00:11]} 8. f3 {[%emt 0:00:07]} O-O {[%emt 0:00:14]} 9. O-O-O {[%emt 0:00:15]} d5 {[%emt 0:08:13]} 10. Kb1 {[%emt 0:01:34]} Nxd4 {[%emt 0:03:30]} 11. e5 {[%emt 0:00:11]} Nxf3 {[%emt 0:10:25]} 12. gxf3 {[%emt 0:00:08] B76: Sicilian Dragon: Yugoslav Attack, 9 g4 and 9 0-0-0} Nh5 {[%emt 0:00:08]} 13. f4 {[%emt 0:30:11]} Bg4 {[%emt 0:01:18]} 14. Be2 {[%emt 0:06:53]} Bxe2 {[%emt 0:00:56]} 15. Nxe2 {[%emt 0:04:34]} e6 {[%emt 0:00:41]} 16. Nd4 {[%emt 0:06:25]} Qd7 {[%emt 0:07:21] [#]} 17. Qe2 $146 {[%emt 0:00:54]} ({Predecessor:} 17. Rhg1 a5 18. Rdf1 Qc7 19. Rg5 Bh6 20. Rg4 Rac8 21. Rfg1 Kh8 22. Nb5 Qc6 23. Na7 {1-0 (47) Rutkauskas,G (2064)-Gerold,A Zakopane 2000}) 17... f6 {[%emt 0:06:14]} 18. Rhg1 {[%emt 0:04:58]} Kh8 {[%emt 0:04:26]} 19. Bc1 {[%emt 0:18:26]} fxe5 {[%emt 0:02:14]} 20. fxe5 {[%emt 0:00:01]} Rf7 $15 {[%emt 0:00:53]} 21. c4 {[%emt 0:02:03]} dxc4 {[%emt 0:09:16]} 22. Qxc4 {[%emt 0:04:15]} Bxe5 {[%emt 0:05:50]} 23. Nxe6 {[%emt 0:00:21]} Qc6 {[%emt 0:00:20]} 24. Qb3 {[%emt 0:01:38]} Rf3 {[%emt 0:00:55]} 25. Qd5 {[%emt 0:02:51]} Bxh2 {[%emt 0:03:24]} 26. Qd4+ {[%emt 0:03:38]} Kg8 {[%emt 0:01:23]} 27. Nd8 {[%emt 0:01:01]} Qb5 {[%emt 0:01:32]} 28. Rg5 {[%emt 0:01:01]} Rf5 {[%emt 0:02:57]} 29. a4 {[%emt 0:00:01]} Qe5 {[%emt 0:11:18]} 30. Qc4+ {[%emt 0:00:01]} Kf8 {[%emt 0:00:13]} 31. Rd7 {[%emt 0:01:32]} Ng7 {[%emt 0:03:55]} 32. Rg2 {[%emt 0:02:21]} Ke8 {[%emt 0:03:06]} 33. Rgd2 {[%emt 0:00:01]} Rf8 {[%emt 0:02:29]} 34. R7d5 {[%emt 0:00:18]} 1-0

[Event "BLR-ch 1st Stage Men 2020"]
[Site "Minsk"]
[Date "2020.02.01"]
[Round "7.7"]
[White "Vashchilov, Sergey"]
[Black "Runets, Ivan"]
[Result "1-0"]
[ECO "B40"]
[WhiteElo "2148"]
[BlackElo "2304"]
[Annotator "NA"]
[PlyCount "89"]
[EventDate "2020.02.01"]
[EventType "swiss"]
[EventCountry "BLR"]
[SourceTitle "playchess.com"]
[Source "ChessBase"]
[SourceQuality "1"]
[TimeControl "40/5400+30:1800+30"]

1. e4 {[%emt 0:02:37]} c5 {[%emt 0:00:00]} 2. Nf3 {[%emt 0:00:14]} e6 {[%emt 0:00:00]} 3. b3 {[%emt 0:00:19]} b6 {[%emt 0:04:20]} 4. Bb2 {[%emt 0:00:30]} Bb7 {[%emt 0:00:09]} 5. Nc3 {[%emt 0:00:13]} a6 {[%emt 0:00:31]} 6. g3 {[%emt 0:02:04]} Nf6 {[%emt 0:00:37]} 7. Qe2 {[%emt 0:04:49]} d6 {[%emt 0:02:25]} 8. d4 {[%emt 0:03:54]} cxd4 {[%emt 0:01:23]} 9. Nxd4 {[%emt 0:00:06]} Qc7 {[%emt 0:06:50]} 10. O-O-O {[%emt 0:02:57]} Nbd7 {[%emt 0:05:23]} 11. Bh3 {[%emt 0:06:44]} b5 {[%emt 0:31:29]} 12. Bxe6 {[%emt 0:08:21]} (12. Rhe1 $16) 12... fxe6 {[%emt 0:00:48]} 13. Nxe6 $11 {[%emt 0:00:05]} Qc6 {[%emt 0:11:02]} 14. Nd5 {[%emt 0:06:30]} Kf7 {[%emt 0:05:17]} 15. Ng5+ {[%emt 0:05:46]} Kg8 {[%emt 0:00:57]} 16. Qf3 {[%emt 0:00:15]} Re8 {[%emt 0:02:38]} 17. Rhe1 {[%emt 0:18:51]} h6 {[%emt 0:05:11]} 18. Nh3 {[%emt 0:01:40]} Ne5 {[%emt 0:06:13]} 19. Nxf6+ {[%emt 0:03:40]} gxf6 {[%emt 0:00:01]} 20. Qxf6 {[%emt 0:05:23]} Bc8 {[%emt 0:05:40]} 21. Bxe5 {[%emt 0:05:42]} Rxe5 {[%emt 0:00:09]} 22. Qg6+ {[%emt 0:01:27]} Bg7 {[%emt 0:00:01]} 23. Rxd6 {[%emt 0:00:24]} Qe8 {[%emt 0:00:12]} 24. Nf4 {[%emt 0:00:57]} h5 {[%emt 0:04:58]} 25. Rd5 {[%emt 0:03:58]} Bb7 {[%emt 0:02:03]} 26. Qxe8+ {[%emt 0:03:18]} Rxe8 {[%emt 0:00:01]} 27. Rg5 {[%emt 0:02:52]} Kf7 {[%emt 0:02:11]} 28. Rf5+ {[%emt 0:00:54]} Kg8 {[%emt 0:00:08]} 29. Nxh5 {[%emt 0:01:12]} Bc3 {[%emt 0:01:45]} 30. Re3 {[%emt 0:02:13]} b4 {[%emt 0:00:04]} 31. Rxc3 {[%emt 0:03:07]} bxc3 {[%emt 0:00:11]} 32. Nf6+ {[%emt 0:00:12]} Kf7 {[%emt 0:01:05]} 33. Nxe8+ {[%emt 0:00:14]} Kxe8 {[%emt 0:00:01]} 34. h4 {[%emt 0:01:44]} Kd7 {[%emt 0:00:52]} 35. Rc5 {[%emt 0:01:57]} Rf8 {[%emt 0:00:01]} 36. f4 {[%emt 0:00:49]} Rc8 {[%emt 0:01:20]} 37. Rxc8 {[%emt 0:00:56]} Kxc8 {[%emt 0:00:01]} 38. e5 {[%emt 0:00:23]} Bf3 {[%emt 0:00:12]} 39. b4 {[%emt 0:01:05]} Kd7 {[%emt 0:00:13]} 40. a4 {[%emt 0:00:00]} Bc6 {[%emt 0:00:00]} 41. h5 {[%emt 0:04:29]} Ke7 {[%emt 0:02:51]} 42. b5 {[%emt 0:02:31]} axb5 {[%emt 0:00:02]} 43. a5 {[%emt 0:00:14]} Bf3 {[%emt 0:03:14]} 44. h6 {[%emt 0:02:45]} Kf7 {[%emt 0:00:39]} 45. e6+ {[%emt 0:01:07]} 1-0